[Event "Early-Titled-Tuesday-Blitz-February-20-2024"]
[Site "Chess.com"]
[Date "2024.02.20"]
[Round "6"]
[White "dimoni64"]
[Black "JaackCamel"]
[Result "0-1"]
[WhiteElo "2085"]
[BlackElo "2194"]
[TimeControl "180+1"]
[EndTime "9:09:36 PST"]
[Termination "JaackCamel won by checkmate"]

1. d4 {[%clk 0:03:00.9]} 1... d5 {[%clk 0:02:58.2]} 2. c4 {[%clk 0:03:01.4]}
2... e6 {[%clk 0:02:55.6]} 3. Nc3 {[%clk 0:03:01.7]} 3... c6 {[%clk 0:02:54.8]}
4. e4 {[%clk 0:03:00.6]} 4... dxe4 {[%clk 0:02:52.8]} 5. Nxe4 {[%clk 0:02:59.7]}
5... Bb4+ {[%clk 0:02:51.6]} 6. Bd2 {[%clk 0:03:00.3]} 6... Qxd4 {[%clk
0:02:50.6]} 7. Bxb4 {[%clk 0:02:59.6]} 7... Qxe4+ {[%clk 0:02:50.1]} 8. Be2
{[%clk 0:03:00.2]} 8... Na6 {[%clk 0:02:42.9]} 9. Bd6 {[%clk 0:02:58.7]} 9...
Qxg2 {[%clk 0:02:28.1]} 10. Bf3 {[%clk 0:02:54.9]} 10... Qg5 {[%clk 0:02:24.7]}
11. Nh3 {[%clk 0:02:37.1]} 11... Qf5 {[%clk 0:02:10.7]} 12. Nf4 {[%clk 0:02:24]}
12... Nf6 {[%clk 0:02:02.4]} 13. Rg1 {[%clk 0:02:17.9]} 13... g5 {[%clk
0:01:55.2]} 14. Ng2 {[%clk 0:02:00.7]} 14... h6 {[%clk 0:01:48.3]} 15. Ne3
{[%clk 0:01:59.7]} 15... Qa5+ {[%clk 0:01:47.7]} 16. Kf1 {[%clk 0:01:54.2]}
16... Bd7 {[%clk 0:01:45.5]} 17. Qd4 {[%clk 0:01:49.9]} 17... O-O-O {[%clk
0:01:23.8]} 18. Qxf6 {[%clk 0:01:45.3]} 18... e5 {[%clk 0:01:21.7]} 19. Qxe5
{[%clk 0:01:41]} 19... Bh3+ {[%clk 0:01:18.1]} 20. Bg2 {[%clk 0:01:38.4]} 20...
Bxg2+ {[%clk 0:01:11.8]} 21. Kxg2 {[%clk 0:01:36.7]} 21... Qd2 {[%clk 0:01:06]}
22. Rad1 {[%clk 0:01:27.8]} 22... Qe2 {[%clk 0:01:04.9]} 23. Qf5+ {[%clk
0:01:25.3]} 23... Rd7 {[%clk 0:01:01.8]} 24. Be5 {[%clk 0:01:23.7]} 24... Rd8
{[%clk 0:00:59.6]} 25. Rxd7 {[%clk 0:01:22.3]} 25... Rxd7 {[%clk 0:00:59.5]} 26.
Rd1 {[%clk 0:01:22.4]} 26... Nc5 {[%clk 0:00:56]} 27. b4 {[%clk 0:01:21.2]}
27... Nd3 {[%clk 0:00:53.2]} 28. Bg3 {[%clk 0:00:52]} 28... Kd8 {[%clk
0:00:48.6]} 29. Qf6+ {[%clk 0:00:50.5]} 29... Ke8 {[%clk 0:00:47.2]} 30. Qxh6
{[%clk 0:00:46.5]} 30... Nf4+ {[%clk 0:00:43.2]} 31. Bxf4 {[%clk 0:00:45.2]}
31... Rxd1 {[%clk 0:00:39.4]} 32. Nxd1 {[%clk 0:00:42.9]} 32... gxf4 {[%clk
0:00:30.1]} 33. Qh8+ {[%clk 0:00:38.1]} 33... Ke7 {[%clk 0:00:26.7]} 34. Qh4+
{[%clk 0:00:34]} 34... Ke8 {[%clk 0:00:20.2]} 35. Qh8+ {[%clk 0:00:28.9]} 35...
Ke7 {[%clk 0:00:20.1]} 36. Nc3 {[%clk 0:00:27.4]} 36... Qg4+ {[%clk 0:00:12.4]}
37. Kf1 {[%clk 0:00:26.3]} 37... f3 {[%clk 0:00:12.5]} 38. Qe5+ {[%clk
0:00:25.1]} 38... Kf8 {[%clk 0:00:11.3]} 39. Qd6+ {[%clk 0:00:24.5]} 39... Ke8
{[%clk 0:00:08.6]} 40. Qe5+ {[%clk 0:00:23.5]} 40... Kf8 {[%clk 0:00:07.7]} 41.
Qh8+ {[%clk 0:00:24.1]} 41... Ke7 {[%clk 0:00:05.4]} 42. Qd4 {[%clk 0:00:18]}
42... Qxd4 {[%clk 0:00:04.5]} 43. Nb5 {[%clk 0:00:16.1]} 43... cxb5 {[%clk
0:00:03.9]} 44. c5 {[%clk 0:00:15.6]} 44... Qxb4 {[%clk 0:00:03.5]} 45. h4
{[%clk 0:00:14.6]} 45... Qxc5 {[%clk 0:00:03.8]} 46. Kg1 {[%clk 0:00:15]} 46...
Qc1+ {[%clk 0:00:03.9]} 47. Kh2 {[%clk 0:00:15.9]} 47... Qf1 {[%clk 0:00:04.3]}
48. Kg3 {[%clk 0:00:16.8]} 48... Qg2+ {[%clk 0:00:04.6]} 49. Kf4 {[%clk
0:00:17]} 49... Qxf2 {[%clk 0:00:05.1]} 50. h5 {[%clk 0:00:17.4]} 50... Qxa2
{[%clk 0:00:05.3]} 51. h6 {[%clk 0:00:18.3]} 51... f2 {[%clk 0:00:05.3]} 52. h7
{[%clk 0:00:19.2]} 52... Qa1 {[%clk 0:00:04.3]} 53. Kg4 {[%clk 0:00:20.1]} 53...
Qh8 {[%clk 0:00:04.4]} 54. Kf3 {[%clk 0:00:19.7]} 54... Qxh7 {[%clk 0:00:04.7]}
55. Kxf2 {[%clk 0:00:20.6]} 55... Qh4+ {[%clk 0:00:04.8]} 56. Ke2 {[%clk
0:00:21.5]} 56... Qh3 {[%clk 0:00:04.9]} 57. Kd2 {[%clk 0:00:22.4]} 57... Kd6
{[%clk 0:00:05.2]} 58. Kc2 {[%clk 0:00:23]} 58... Kd5 {[%clk 0:00:05.6]} 59. Kb2
{[%clk 0:00:23.9]} 59... Kc4 {[%clk 0:00:06]} 60. Kc2 {[%clk 0:00:24.1]} 60...
Qg2+ {[%clk 0:00:05.4]} 61. Kc1 {[%clk 0:00:23.8]} 61... Kd3 {[%clk 0:00:05.7]}
62. Kd1 {[%clk 0:00:24.7]} 62... Qf1# {[%clk 0:00:05.3]} 0-1

[Event "Early-Titled-Tuesday-Blitz-February-20-2024"]
[Site "Chess.com"]
[Date "2024.02.20"]
[Round "6"]
[White "PositionalPanther"]
[Black "Karttunen"]
[Result "0-1"]
[WhiteElo "2516"]
[BlackElo "2676"]
[TimeControl "180+1"]
[EndTime "9:09:37 PST"]
[Termination "Karttunen won by checkmate"]

1. Nf3 {[%clk 0:03:00.9]} 1... d5 {[%clk 0:02:59.4]} 2. g3 {[%clk 0:03:01.4]}
2... Nf6 {[%clk 0:02:59]} 3. Bg2 {[%clk 0:03:01.8]} 3... c5 {[%clk 0:02:59.3]}
4. d4 {[%clk 0:03:00.5]} 4... cxd4 {[%clk 0:02:55.8]} 5. Nxd4 {[%clk 0:02:55.2]}
5... e5 {[%clk 0:02:52]} 6. Nb3 {[%clk 0:02:55.2]} 6... h6 {[%clk 0:02:49.5]} 7.
O-O {[%clk 0:02:53.9]} 7... Be7 {[%clk 0:02:45]} 8. N1d2 {[%clk 0:02:47.9]} 8...
O-O {[%clk 0:02:42.8]} 9. c4 {[%clk 0:02:48]} 9... d4 {[%clk 0:02:42.3]} 10. Ne4
{[%clk 0:02:40.4]} 10... Nfd7 {[%clk 0:02:21.7]} 11. f4 {[%clk 0:02:28.9]} 11...
Nc6 {[%clk 0:02:06.5]} 12. fxe5 {[%clk 0:02:26.5]} 12... Ndxe5 {[%clk 0:02:06]}
13. Bf4 {[%clk 0:01:58]} 13... Nxc4 {[%clk 0:02:00.5]} 14. Rc1 {[%clk
0:01:54.9]} 14... Nxb2 {[%clk 0:01:49.9]} 15. Qd2 {[%clk 0:01:46.7]} 15... Na4
{[%clk 0:01:43.6]} 16. Bxh6 {[%clk 0:01:34.5]} 16... Nc3 {[%clk 0:01:28.5]} 17.
Bf4 {[%clk 0:01:12.7]} 17... Bb4 {[%clk 0:01:20.8]} 18. Nxc3 {[%clk 0:00:52.2]}
18... dxc3 {[%clk 0:01:06.4]} 19. Qxd8 {[%clk 0:00:28.3]} 19... Rxd8 {[%clk
0:01:05.7]} 20. a3 {[%clk 0:00:20.4]} 20... Bxa3 {[%clk 0:01:00.8]} 21. Rxc3
{[%clk 0:00:20.7]} 21... Bg4 {[%clk 0:00:51.5]} 22. e3 {[%clk 0:00:13.4]} 22...
Bb4 {[%clk 0:00:48.3]} 23. Rc4 {[%clk 0:00:12.6]} 23... Be2 {[%clk 0:00:47.2]}
24. Rfc1 {[%clk 0:00:10.7]} 24... Bxc4 {[%clk 0:00:42.6]} 25. Rxc4 {[%clk
0:00:11.6]} 25... Rd1+ {[%clk 0:00:39.5]} 26. Kf2 {[%clk 0:00:11.2]} 26... a5
{[%clk 0:00:37.4]} 27. Bxc6 {[%clk 0:00:10.9]} 27... bxc6 {[%clk 0:00:37.4]} 28.
Rxc6 {[%clk 0:00:11.4]} 28... a4 {[%clk 0:00:36.7]} 29. Nd4 {[%clk 0:00:11.7]}
29... a3 {[%clk 0:00:35.8]} 30. Nf5 {[%clk 0:00:12]} 30... a2 {[%clk 0:00:33]}
31. Be5 {[%clk 0:00:12.3]} 31... a1=Q {[%clk 0:00:30.6]} 32. Bxa1 {[%clk
0:00:12.7]} 32... Rdxa1 {[%clk 0:00:31.3]} 33. h4 {[%clk 0:00:09.4]} 33... Bf8
{[%clk 0:00:30.9]} 34. h5 {[%clk 0:00:09.4]} 34... R8a2+ {[%clk 0:00:29.9]} 35.
Kf3 {[%clk 0:00:09.5]} 35... Rf1+ {[%clk 0:00:30.1]} 36. Ke4 {[%clk 0:00:09.1]}
36... Ra4+ {[%clk 0:00:29.3]} 37. Nd4 {[%clk 0:00:09.5]} 37... Ra5 {[%clk
0:00:25.5]} 38. g4 {[%clk 0:00:09.3]} 38... Rg5 {[%clk 0:00:25.2]} 39. Rc8
{[%clk 0:00:07.8]} 39... Rxg4+ {[%clk 0:00:25.1]} 40. Kd5 {[%clk 0:00:08.2]}
40... Rg5+ {[%clk 0:00:24.9]} 41. Kc6 {[%clk 0:00:07.5]} 41... Rc1+ {[%clk
0:00:24.4]} 42. Kd7 {[%clk 0:00:07.9]} 42... Rxc8 {[%clk 0:00:24.4]} 43. Kxc8
{[%clk 0:00:08.8]} 43... Rxh5 {[%clk 0:00:24.8]} 44. e4 {[%clk 0:00:09.7]} 44...
Re5 {[%clk 0:00:24.7]} 45. Kd7 {[%clk 0:00:08.9]} 45... Rxe4 {[%clk 0:00:24.9]}
46. Nf5 {[%clk 0:00:09.4]} 46... Re6 {[%clk 0:00:24.8]} 47. Kd8 {[%clk
0:00:09.2]} 47... g6 {[%clk 0:00:24.6]} 48. Nd4 {[%clk 0:00:09]} 48... Rd6+
{[%clk 0:00:24.9]} 49. Ke8 {[%clk 0:00:08.8]} 49... Bg7 {[%clk 0:00:18.6]} 50.
Nf5 {[%clk 0:00:06.5]} 50... gxf5 {[%clk 0:00:17.6]} 51. Ke7 {[%clk 0:00:06.8]}
51... Be5 {[%clk 0:00:15.6]} 52. Ke8 {[%clk 0:00:06.8]} 52... Rd5 {[%clk
0:00:13.4]} 53. Ke7 {[%clk 0:00:07.7]} 53... Kg7 {[%clk 0:00:13.1]} 54. Ke8
{[%clk 0:00:08.6]} 54... Rd1 {[%clk 0:00:12.1]} 55. Ke7 {[%clk 0:00:09.5]} 55...
Bf6+ {[%clk 0:00:12.3]} 56. Ke8 {[%clk 0:00:10.4]} 56... Rd8# {[%clk 0:00:12.6]}
0-1

[Event "Early-Titled-Tuesday-Blitz-February-20-2024"]
[Site "Chess.com"]
[Date "2024.02.20"]
[Round "6"]
[White "Journey_to_GrandMaster_YT"]
[Black "djano"]
[Result "0-1"]
[WhiteElo "2515"]
[BlackElo "2674"]
[TimeControl "180+1"]
[EndTime "9:09:37 PST"]
[Termination "djano won on time"]

1. d4 {[%clk 0:03:00.7]} 1... d5 {[%clk 0:02:57.3]} 2. c4 {[%clk 0:03:00.2]}
2... e6 {[%clk 0:02:57.3]} 3. Nc3 {[%clk 0:03:00.2]} 3... c5 {[%clk 0:02:57]} 4.
cxd5 {[%clk 0:03:00.2]} 4... cxd4 {[%clk 0:02:53.5]} 5. Qxd4 {[%clk 0:02:59.9]}
5... Nc6 {[%clk 0:02:53.4]} 6. Qd1 {[%clk 0:02:55.1]} 6... exd5 {[%clk
0:02:53.6]} 7. Qxd5 {[%clk 0:02:54.7]} 7... Bd6 {[%clk 0:02:54.2]} 8. Nf3 {[%clk
0:02:47.8]} 8... Nf6 {[%clk 0:02:54]} 9. Qb3 {[%clk 0:02:47.7]} 9... O-O {[%clk
0:02:42.3]} 10. Bg5 {[%clk 0:02:41.4]} 10... h6 {[%clk 0:02:37.2]} 11. Bh4
{[%clk 0:02:33.4]} 11... Be6 {[%clk 0:02:27.3]} 12. Qxb7 {[%clk 0:02:29.1]}
12... Nb4 {[%clk 0:02:25.5]} 13. Rc1 {[%clk 0:02:29.6]} 13... Re8 {[%clk
0:01:51.8]} 14. e3 {[%clk 0:02:10.1]} 14... g5 {[%clk 0:01:25.8]} 15. Bg3 {[%clk
0:01:33.2]} 15... Bxg3 {[%clk 0:01:25.2]} 16. hxg3 {[%clk 0:01:31.9]} 16... Rb8
{[%clk 0:01:25.6]} 17. Qxa7 {[%clk 0:01:27.6]} 17... Ng4 {[%clk 0:01:09.2]} 18.
Be2 {[%clk 0:00:43.8]} 18... Nd3+ {[%clk 0:01:03.6]} 19. Bxd3 {[%clk 0:00:43.6]}
19... Qxd3 {[%clk 0:01:04.5]} 20. Qd4 {[%clk 0:00:43.1]} 20... Qxd4 {[%clk
0:00:56]} 21. Nxd4 {[%clk 0:00:42.7]} 21... Rxb2 {[%clk 0:00:56.3]} 22. Nxe6
{[%clk 0:00:34.8]} 22... Nxf2 {[%clk 0:00:54.2]} 23. O-O {[%clk 0:00:31.8]}
23... Ng4 {[%clk 0:00:39.9]} 24. Nd4 {[%clk 0:00:23.1]} 24... Rxe3 {[%clk
0:00:40.1]} 25. Rf3 {[%clk 0:00:17.1]} 25... Re5 {[%clk 0:00:28.5]} 26. Rc2
{[%clk 0:00:16.5]} 26... Re1+ {[%clk 0:00:25.4]} 27. Rf1 {[%clk 0:00:16.8]}
27... Rxf1+ {[%clk 0:00:25.9]} 28. Kxf1 {[%clk 0:00:17.1]} 28... Ne3+ {[%clk
0:00:26.6]} 29. Ke2 {[%clk 0:00:13.3]} 29... Nxc2 {[%clk 0:00:27.5]} 30. Nxc2
{[%clk 0:00:10.3]} 30... Rxc2+ {[%clk 0:00:28.4]} 31. Kd3 {[%clk 0:00:09.5]}
31... Rxg2 {[%clk 0:00:29]} 32. Ne2 {[%clk 0:00:09.8]} 32... Rf2 {[%clk
0:00:28]} 33. a4 {[%clk 0:00:09.8]} 33... Rf3+ {[%clk 0:00:28.3]} 34. Kc4 {[%clk
0:00:09.7]} 34... Re3 {[%clk 0:00:28.6]} 35. Nc3 {[%clk 0:00:09.4]} 35... h5
{[%clk 0:00:29.1]} 36. a5 {[%clk 0:00:09.9]} 36... h4 {[%clk 0:00:28.4]} 37.
gxh4 {[%clk 0:00:10.2]} 37... gxh4 {[%clk 0:00:28.5]} 38. Nd5 {[%clk 0:00:09.2]}
38... Ra3 {[%clk 0:00:27.6]} 39. Kb4 {[%clk 0:00:09.3]} 39... Ra1 {[%clk
0:00:27.6]} 40. Nf4 {[%clk 0:00:05.2]} 40... Kh7 {[%clk 0:00:24.6]} 41. Kb5
{[%clk 0:00:05.5]} 41... Kh6 {[%clk 0:00:24.7]} 42. a6 {[%clk 0:00:04]} 42...
Kg5 {[%clk 0:00:25.2]} 43. Nh3+ {[%clk 0:00:04.4]} 43... Kg4 {[%clk 0:00:24.8]}
44. Nf2+ {[%clk 0:00:04.9]} 44... Kg3 {[%clk 0:00:24.8]} 45. Ne4+ {[%clk
0:00:05.3]} 45... Kg2 {[%clk 0:00:24.1]} 46. Nc5 {[%clk 0:00:04.6]} 46... Rxa6
{[%clk 0:00:23.9]} 47. Kxa6 {[%clk 0:00:02.5]} 47... h3 {[%clk 0:00:24.8]} 48.
Nd3 {[%clk 0:00:02.9]} 48... h2 {[%clk 0:00:22.9]} 49. Nf4+ {[%clk 0:00:03.2]}
49... Kf3 {[%clk 0:00:21.2]} 50. Nd3 {[%clk 0:00:02]} 50... h1=Q {[%clk
0:00:20.7]} 51. Ne5+ {[%clk 0:00:02.6]} 51... Kg3 {[%clk 0:00:17.8]} 52. Nxf7
{[%clk 0:00:03.5]} 52... Qf1+ {[%clk 0:00:17.4]} 0-1

[Event "Early-Titled-Tuesday-Blitz-February-20-2024"]
[Site "Chess.com"]
[Date "2024.02.20"]
[Round "6"]
[White "yuriydovzik"]
[Black "MVM2008"]
[Result "1-0"]
[WhiteElo "2162"]
[BlackElo "2454"]
[TimeControl "180+1"]
[EndTime "9:09:37 PST"]
[Termination "yuriydovzik won by resignation"]

1. e4 {[%clk 0:02:59.4]} 1... e5 {[%clk 0:03:00.2]} 2. Nf3 {[%clk 0:02:58.7]}
2... Nf6 {[%clk 0:03:00.8]} 3. Nc3 {[%clk 0:02:56.6]} 3... Bc5 {[%clk
0:03:00.2]} 4. Bc4 {[%clk 0:02:49.8]} 4... b5 {[%clk 0:02:58.6]} 5. Bxb5 {[%clk
0:02:41.6]} 5... c6 {[%clk 0:02:56.1]} 6. Bd3 {[%clk 0:02:39.2]} 6... d5 {[%clk
0:02:55.4]} 7. O-O {[%clk 0:02:36.9]} 7... O-O {[%clk 0:02:54.4]} 8. h3 {[%clk
0:02:34.8]} 8... dxe4 {[%clk 0:02:52.5]} 9. Nxe4 {[%clk 0:02:32.7]} 9... Nxe4
{[%clk 0:02:52.3]} 10. Bxe4 {[%clk 0:02:31.5]} 10... f5 {[%clk 0:02:52.6]} 11.
Bd3 {[%clk 0:02:24.9]} 11... e4 {[%clk 0:02:51.5]} 12. Bc4+ {[%clk 0:02:23.8]}
12... Kh8 {[%clk 0:02:51.7]} 13. d4 {[%clk 0:02:16]} 13... Bd6 {[%clk
0:02:46.5]} 14. Bg5 {[%clk 0:01:55.5]} 14... Qe8 {[%clk 0:02:39]} 15. Ne5 {[%clk
0:01:47.8]} 15... Bxe5 {[%clk 0:02:01.5]} 16. dxe5 {[%clk 0:01:46.9]} 16... Qxe5
{[%clk 0:02:02.4]} 17. g3 {[%clk 0:01:36]} 17... Nd7 {[%clk 0:01:54.4]} 18. Bf4
{[%clk 0:01:27.9]} 18... Qf6 {[%clk 0:01:48.5]} 19. Qd6 {[%clk 0:01:24.2]} 19...
Nb6 {[%clk 0:01:33.7]} 20. Qxf6 {[%clk 0:01:16]} 20... Rxf6 {[%clk 0:01:34.6]}
21. Bb3 {[%clk 0:01:11]} 21... Be6 {[%clk 0:01:29.4]} 22. Be5 {[%clk 0:01:02.2]}
22... Rg6 {[%clk 0:01:20.1]} 23. Rfd1 {[%clk 0:00:58.9]} 23... Nd5 {[%clk
0:01:11.6]} 24. c4 {[%clk 0:00:53.5]} 24... Nb4 {[%clk 0:01:09.8]} 25. Rd6
{[%clk 0:00:50.1]} 25... Nd3 {[%clk 0:01:01]} 26. Bc3 {[%clk 0:00:44.4]} 26...
c5 {[%clk 0:00:54]} 27. Rd1 {[%clk 0:00:30.5]} 27... f4 {[%clk 0:00:48.7]} 28.
g4 {[%clk 0:00:26]} 28... h5 {[%clk 0:00:47.4]} 29. f3 {[%clk 0:00:18.9]} 29...
hxg4 {[%clk 0:00:15.7]} 30. hxg4 {[%clk 0:00:16.7]} 30... Bxg4 {[%clk
0:00:15.9]} 31. Rxg6 {[%clk 0:00:13.1]} 31... Bxf3 {[%clk 0:00:16.1]} 32. Rxd3
{[%clk 0:00:12.7]} 32... exd3 {[%clk 0:00:16.2]} 33. Rxg7 {[%clk 0:00:09.5]}
33... Rg8 {[%clk 0:00:13.2]} 34. Rxg8+ {[%clk 0:00:07.1]} 34... Kxg8 {[%clk
0:00:14.1]} 35. Kf2 {[%clk 0:00:06.7]} 35... Be2 {[%clk 0:00:14.1]} 36. Bd2
{[%clk 0:00:05.9]} 36... f3 {[%clk 0:00:14.7]} 37. Be3 {[%clk 0:00:05.9]} 37...
Kf7 {[%clk 0:00:12.8]} 38. Ba4 {[%clk 0:00:05.2]} 38... Ke6 {[%clk 0:00:10.7]}
39. Bc6 {[%clk 0:00:05.7]} 39... Ke5 {[%clk 0:00:11]} 40. Bxf3 {[%clk
0:00:06.2]} 40... Bxf3 {[%clk 0:00:10.7]} 41. Kxf3 {[%clk 0:00:06]} 41... d2
{[%clk 0:00:09.9]} 42. Bxd2 {[%clk 0:00:05.6]} 42... Kd4 {[%clk 0:00:10.8]} 43.
Ke2 {[%clk 0:00:05.8]} 43... Kxc4 {[%clk 0:00:11.7]} 44. Bc3 {[%clk 0:00:05.9]}
44... a6 {[%clk 0:00:12]} 45. Kd2 {[%clk 0:00:06.1]} 45... Kb5 {[%clk
0:00:10.1]} 46. Kc2 {[%clk 0:00:06.5]} 46... a5 {[%clk 0:00:09.5]} 47. Bd2
{[%clk 0:00:06.7]} 47... a4 {[%clk 0:00:08.3]} 48. Be1 {[%clk 0:00:06.2]} 48...
c4 {[%clk 0:00:06.6]} 49. a3 {[%clk 0:00:06.1]} 49... Kc6 {[%clk 0:00:05.2]} 50.
Kc3 {[%clk 0:00:06.3]} 50... Kb5 {[%clk 0:00:05.5]} 51. Bf2 {[%clk 0:00:06.3]}
51... Kc6 {[%clk 0:00:05.2]} 52. Kxc4 {[%clk 0:00:06.5]} 52... Kb7 {[%clk
0:00:05.8]} 53. Kb4 {[%clk 0:00:06.8]} 1-0

[Event "Early-Titled-Tuesday-Blitz-February-20-2024"]
[Site "Chess.com"]
[Date "2024.02.20"]
[Round "6"]
[White "DenLaz"]
[Black "ActorXu"]
[Result "1/2-1/2"]
[WhiteElo "3033"]
[BlackElo "2820"]
[TimeControl "180+1"]
[EndTime "9:09:40 PST"]
[Termination "Game drawn by repetition"]

1. d4 {[%clk 0:03:00.9]} 1... Nf6 {[%clk 0:03:00.3]} 2. c4 {[%clk 0:03:01.3]}
2... e6 {[%clk 0:03:00.7]} 3. Nf3 {[%clk 0:03:01.9]} 3... d5 {[%clk 0:03:01]} 4.
Nc3 {[%clk 0:03:02.2]} 4... Bb4 {[%clk 0:03:01]} 5. Bg5 {[%clk 0:03:00.8]} 5...
h6 {[%clk 0:03:00.9]} 6. Bxf6 {[%clk 0:03:01.1]} 6... Qxf6 {[%clk 0:03:01.8]} 7.
e3 {[%clk 0:03:01.7]} 7... O-O {[%clk 0:03:01.8]} 8. Rc1 {[%clk 0:03:00.9]} 8...
dxc4 {[%clk 0:03:02]} 9. Bxc4 {[%clk 0:03:00.8]} 9... c5 {[%clk 0:03:02.6]} 10.
Qb3 {[%clk 0:03:01.3]} 10... Bxc3+ {[%clk 0:02:58.9]} 11. Qxc3 {[%clk
0:02:59.8]} 11... cxd4 {[%clk 0:02:58.8]} 12. Qxd4 {[%clk 0:02:45]} 12... Qe7
{[%clk 0:02:58.5]} 13. Bd3 {[%clk 0:02:38.9]} 13... Nc6 {[%clk 0:02:48.5]} 14.
Qe4 {[%clk 0:02:39.1]} 14... Qb4+ {[%clk 0:02:46.7]} 15. Nd2 {[%clk 0:02:32.4]}
15... Qxe4 {[%clk 0:02:26.9]} 16. Bxe4 {[%clk 0:02:33.3]} 16... Bd7 {[%clk
0:02:26.5]} 17. f4 {[%clk 0:02:26.3]} 17... Rac8 {[%clk 0:02:24.5]} 18. Kf2
{[%clk 0:02:25.4]} 18... Rfd8 {[%clk 0:02:21.5]} 19. Nf3 {[%clk 0:02:21.6]}
19... Be8 {[%clk 0:02:16.3]} 20. g4 {[%clk 0:02:17.5]} 20... b6 {[%clk
0:02:11.6]} 21. h4 {[%clk 0:02:12.1]} 21... Ne7 {[%clk 0:01:58.5]} 22. Nd4
{[%clk 0:02:09.1]} 22... Rxc1 {[%clk 0:01:58.3]} 23. Rxc1 {[%clk 0:02:08.9]}
23... Rc8 {[%clk 0:01:58.9]} 24. Rxc8 {[%clk 0:01:56.7]} 24... Nxc8 {[%clk
0:01:58.9]} 25. Ke2 {[%clk 0:01:52.4]} 25... Nd6 {[%clk 0:01:57.2]} 26. Bc6
{[%clk 0:01:52.2]} 26... Kf8 {[%clk 0:01:54.9]} 27. Kd3 {[%clk 0:01:52]} 27...
Ke7 {[%clk 0:01:44]} 28. e4 {[%clk 0:01:44.4]} 28... Bd7 {[%clk 0:01:20.9]} 29.
e5 {[%clk 0:01:20.2]} 29... Ne8 {[%clk 0:01:20.8]} 30. Bf3 {[%clk 0:01:20]}
30... Nc7 {[%clk 0:01:17.1]} 31. b4 {[%clk 0:01:18.1]} 31... Nb5 {[%clk
0:01:13.5]} 32. Ne2 {[%clk 0:01:09.4]} 32... Nc7 {[%clk 0:01:10.4]} 33. Nc3
{[%clk 0:01:07.1]} 33... Nb5 {[%clk 0:01:07.4]} 34. Nd1 {[%clk 0:00:57.9]} 34...
f6 {[%clk 0:01:04.5]} 35. Ne3 {[%clk 0:00:49.5]} 35... fxe5 {[%clk 0:01:02.4]}
36. fxe5 {[%clk 0:00:50.4]} 36... Na3 {[%clk 0:00:58.9]} 37. Bd1 {[%clk
0:00:46.4]} 37... g5 {[%clk 0:00:52.6]} 38. hxg5 {[%clk 0:00:43.3]} 38... hxg5
{[%clk 0:00:52.8]} 39. Bb3 {[%clk 0:00:38.6]} 39... a5 {[%clk 0:00:46.7]} 40.
bxa5 {[%clk 0:00:36.6]} 40... bxa5 {[%clk 0:00:47.6]} 41. Kd4 {[%clk 0:00:33.4]}
41... Bc6 {[%clk 0:00:45.3]} 42. Kc5 {[%clk 0:00:32]} 42... Bf3 {[%clk
0:00:44.9]} 43. Kb6 {[%clk 0:00:31]} 43... Nb1 {[%clk 0:00:39.4]} 44. Kxa5
{[%clk 0:00:31.1]} 44... Nd2 {[%clk 0:00:39.2]} 45. Kb6 {[%clk 0:00:30]} 45...
Kd7 {[%clk 0:00:34.3]} 46. Bc2 {[%clk 0:00:25.4]} 46... Be2 {[%clk 0:00:31.2]}
47. a4 {[%clk 0:00:25.3]} 47... Nf3 {[%clk 0:00:28.9]} 48. a5 {[%clk 0:00:21.8]}
48... Nxe5 {[%clk 0:00:29.5]} 49. Be4 {[%clk 0:00:17.9]} 49... Kc8 {[%clk
0:00:26.5]} 50. Bb7+ {[%clk 0:00:06.7]} 50... Kb8 {[%clk 0:00:26.5]} 51. a6
{[%clk 0:00:06.9]} 51... Nd7+ {[%clk 0:00:25.1]} 52. Kc6 {[%clk 0:00:07.2]}
52... Ne5+ {[%clk 0:00:20]} 53. Kb6 {[%clk 0:00:05]} 53... Nd7+ {[%clk
0:00:20.3]} 54. Kc6 {[%clk 0:00:05.6]} 54... Ne5+ {[%clk 0:00:20.8]} 55. Kb6
{[%clk 0:00:06.2]} 1/2-1/2

[Event "Early-Titled-Tuesday-Blitz-February-20-2024"]
[Site "Chess.com"]
[Date "2024.02.20"]
[Round "6"]
[White "KuzubovYuriy"]
[Black "NewBornNow"]
[Result "1-0"]
[WhiteElo "2964"]
[BlackElo "2791"]
[TimeControl "180+1"]
[EndTime "9:09:40 PST"]
[Termination "KuzubovYuriy won on time"]

1. d4 {[%clk 0:03:00.9]} 1... Nf6 {[%clk 0:02:58.2]} 2. Nf3 {[%clk 0:03:01.2]}
2... g6 {[%clk 0:02:56.3]} 3. Nbd2 {[%clk 0:03:01.5]} 3... d5 {[%clk 0:02:55.6]}
4. b4 {[%clk 0:03:01.1]} 4... Bg7 {[%clk 0:02:55.1]} 5. e3 {[%clk 0:03:01.1]}
5... O-O {[%clk 0:02:54.9]} 6. c4 {[%clk 0:03:00.5]} 6... c6 {[%clk 0:02:46.8]}
7. Bb2 {[%clk 0:03:00.2]} 7... Bg4 {[%clk 0:02:45.3]} 8. Be2 {[%clk 0:03:00]}
8... e6 {[%clk 0:02:45.3]} 9. O-O {[%clk 0:02:59.9]} 9... Nbd7 {[%clk
0:02:43.8]} 10. Rc1 {[%clk 0:02:52.6]} 10... a5 {[%clk 0:02:42.4]} 11. b5 {[%clk
0:02:50.8]} 11... a4 {[%clk 0:02:42.2]} 12. Ba3 {[%clk 0:02:37.6]} 12... Re8
{[%clk 0:02:41.3]} 13. h3 {[%clk 0:02:36]} 13... Bxf3 {[%clk 0:02:40.3]} 14.
Nxf3 {[%clk 0:02:36.1]} 14... Ne4 {[%clk 0:02:36.7]} 15. Bd3 {[%clk 0:02:30]}
15... e5 {[%clk 0:02:28.2]} 16. bxc6 {[%clk 0:02:19.3]} 16... bxc6 {[%clk
0:02:27.7]} 17. cxd5 {[%clk 0:02:18.9]} 17... cxd5 {[%clk 0:02:27.6]} 18. Bb5
{[%clk 0:02:17.8]} 18... exd4 {[%clk 0:02:22.7]} 19. Nxd4 {[%clk 0:02:16.6]}
19... Rc8 {[%clk 0:01:39.4]} 20. Nc6 {[%clk 0:01:56.9]} 20... Rxc6 {[%clk
0:01:13.1]} 21. Bxc6 {[%clk 0:01:55.1]} 21... Nc3 {[%clk 0:01:11.8]} 22. Rxc3
{[%clk 0:01:45.1]} 22... Bxc3 {[%clk 0:01:10.4]} 23. Qxa4 {[%clk 0:01:44.5]}
23... Nb6 {[%clk 0:01:00.3]} 24. Qb3 {[%clk 0:01:39.8]} 24... Re4 {[%clk
0:00:55.3]} 25. Qxc3 {[%clk 0:01:00.1]} 25... Rc4 {[%clk 0:00:52.4]} 26. Qe5
{[%clk 0:00:59.2]} 26... Rxc6 {[%clk 0:00:52.1]} 27. Bb2 {[%clk 0:00:57.6]}
27... f6 {[%clk 0:00:49.1]} 28. Qf4 {[%clk 0:00:58]} 28... Nc4 {[%clk
0:00:46.4]} 29. Bd4 {[%clk 0:00:57.2]} 29... Qd6 {[%clk 0:00:40.9]} 30. Qxd6
{[%clk 0:00:53.2]} 30... Rxd6 {[%clk 0:00:40.8]} 31. Rb1 {[%clk 0:00:49.4]}
31... h5 {[%clk 0:00:37.6]} 32. a4 {[%clk 0:00:41.5]} 32... Kf7 {[%clk
0:00:34.2]} 33. Rb4 {[%clk 0:00:35.8]} 33... Rc6 {[%clk 0:00:25]} 34. g4 {[%clk
0:00:20.9]} 34... h4 {[%clk 0:00:20]} 35. Kg2 {[%clk 0:00:20.5]} 35... g5 {[%clk
0:00:20.1]} 36. Rb5 {[%clk 0:00:17.9]} 36... Ke6 {[%clk 0:00:19.5]} 37. a5
{[%clk 0:00:17.1]} 37... Ra6 {[%clk 0:00:18.9]} 38. Bc3 {[%clk 0:00:16.8]} 38...
Nd6 {[%clk 0:00:18.6]} 39. Rb6 {[%clk 0:00:15.6]} 39... Rxb6 {[%clk 0:00:18]}
40. axb6 {[%clk 0:00:16]} 40... f5 {[%clk 0:00:16.2]} 41. gxf5+ {[%clk
0:00:15.6]} 41... Kxf5 {[%clk 0:00:16.1]} 42. Bb4 {[%clk 0:00:14.9]} 42... Nb7
{[%clk 0:00:15.8]} 43. Kf3 {[%clk 0:00:15.3]} 43... Nd8 {[%clk 0:00:15.8]} 44.
Be7 {[%clk 0:00:12.5]} 44... Nb7 {[%clk 0:00:14.4]} 45. Kg2 {[%clk 0:00:12.2]}
45... Na5 {[%clk 0:00:10.8]} 46. f3 {[%clk 0:00:11.5]} 46... Nb7 {[%clk
0:00:09.5]} 47. Kf2 {[%clk 0:00:11.8]} 47... Na5 {[%clk 0:00:07.7]} 48. Ke2
{[%clk 0:00:12.3]} 48... Nc6 {[%clk 0:00:05.3]} 49. b7 {[%clk 0:00:09.7]} 49...
Ke6 {[%clk 0:00:03.4]} 50. Bxg5 {[%clk 0:00:09.8]} 50... Kd7 {[%clk 0:00:03.7]}
51. Bf4 {[%clk 0:00:10]} 1-0